bitfinex-derivatives/quotes_ETHF0:USTF0_20250917
["timestamp","ask_amount","ask_price","bid_price","bid_amount"]
[1758132303112,3.2078,4509.7,4508.3,3.2078]
[1758132303312,3.2078,4509.7,4507.8,3.2078]
[1758132303513,3.2078,4509.7,4505.8,0.22185]
[1758132303514,0.444,4509.9,4508.8,3.2078]
[1758132303711,0.4478,4509.4,4509.3,3.2078]
[1758132304308,0.4478,4509.4,4509.3,3.6518]
[1758132304814,0.4478,4509.4,4509.3,7.6518]
[1758132305313,0.4478,4509.4,4509.3,3.2078]
[1758132305509,0.4478,4509.4,4509.3,3.6518]
[1758132305722,0.4478,4509.4,4508.3,3.2078]
[1758132305903,0.4478,4509.4,4508.4,0.444]
[1758132306108,0.4478,4509.4,4508.9,3.2078]
[1758132306309,1.6072,4509.3,4505.5,0.0221]
[1758132306512,1.6072,4509.3,4508.2,3.2078]
[1758132307202,1.6072,4509.3,4507.9,0.444]
[1758132307203,0.6277,4508.8,4507.9,0.444]
[1758132307406,0.6277,4508.8,4507.7,3.2078]
[1758132307606,1.6007,4508.6,4507.7,3.2078]
[1758132307907,1.6007,4508.3,4507.0,3.2078]
[1758132308314,1.6007,4507.6,4506.4,0.443]
[1758132308507,1.6007,4507.6,4506.3,0.443]
[1758132308702,1.6007,4507.6,4505.5,31.9901]
[1758132308703,1.6007,4507.1,4505.5,0.0221]
[1758132308911,3.8355,4507.2,4503.3,3.2078]
[1758132308912,3.8355,4505.6,4503.3,3.2078]
[1758132309113,1.6007,4504.8,4503.3,3.2078]
[1758132309307,3.2078,4504.4,4502.4,3.2078]
[1758132309609,1.6007,4503.7,4502.4,3.2078]
[1758132309803,0.6277,4504.0,4503.4,3.2078]
[1758132310004,3.2078,4503.5,4501.6,3.2078]
[1758132310209,3.2078,4502.3,4500.8,3.2078]
[1758132310511,3.2078,4502.3,4501.1,1.5507]
[1758132310712,3.2078,4502.3,4500.5,3.2078]
[1758132310910,3.2078,4501.7,4500.5,3.2078]
[1758132311216,3.2078,4502.2,4500.6,1.5507]
[1758132311408,3.2078,4502.2,4498.2,0.6425]
[1758132311409,3.2078,4501.5,4500.0,3.2078]
[1758132311714,3.2078,4500.4,4499.5,1.5507]
[1758132312014,0.443,4501.5,4499.5,1.5507]
[1758132312015,3.2078,4501.2,4499.5,1.5507]
[1758132312203,3.2078,4500.6,4499.5,1.5507]
[1758132312406,3.2078,4501.2,4499.5,1.5507]
[1758132312606,3.2078,4501.2,4500.3,1.5507]
[1758132312803,3.2078,4502.2,4500.8,1.5507]
[1758132313008,3.2078,4502.2,4501.3,3.2078]
[1758132313208,3.2078,4502.8,4501.4,0.443]
[1758132313408,3.2078,4502.8,4501.8,3.2078]
[1758132313610,3.2078,4503.7,4501.9,1.9947]
[1758132313917,3.2078,4503.7,4502.0,0.444]
[1758132314120,3.2078,4503.7,4502.6,3.2078]
[1758132314413,3.2078,4504.3,4503.6,3.2078]
[1758132314613,3.2078,4504.8,4503.7,0.444]
[1758132314917,3.2078,4505.9,4504.6,3.2078]
[1758132315212,3.2078,4505.8,4503.6,3.2078]
[1758132315412,1.6007,4505.7,4503.6,3.2078]
[1758132315610,1.6007,4504.4,4503.0,3.2078]
[1758132316008,3.2078,4505.0,4504.0,3.2078]
[1758132316215,3.2078,4505.1,4503.7,1.5507]
[1758132316417,3.2078,4505.6,4504.0,3.2078]
[1758132316717,3.2078,4505.6,4504.5,3.2078]
[1758132316918,3.2078,4505.6,4504.6,0.444]
[1758132317119,3.2078,4505.6,4504.7,1.5507]
[1758132317519,3.2078,4505.6,4504.8,0.444]
[1758132317724,3.2078,4506.2,4504.8,0.444]
[1758132318021,3.2078,4506.2,4504.6,0.444]
[1758132318216,3.2078,4506.2,4505.0,3.2078]
[1758132318609,3.2078,4508.0,4506.1,3.2078]
[1758132318815,1.6007,4507.3,4505.9,0.444]
[1758132319016,1.6007,4507.3,4505.8,0.444]
[1758132319219,1.6007,4507.3,4506.0,3.2078]
[1758132319416,1.6007,4507.3,4506.5,3.2078]
[1758132320020,1.6007,4506.6,4505.5,3.2078]
[1758132320220,0.6277,4506.7,4505.5,3.2078]
[1758132320521,1.6007,4506.6,4505.5,3.2078]
[1758132320709,3.2078,4506.5,4504.8,3.2078]
[1758132320910,3.2078,4506.5,4505.1,3.2078]
[1758132321115,4.8085,4505.3,4504.4,0.444]
[1758132321311,1.6007,4506.3,4504.9,3.2078]
[1758132321521,0.6277,4506.7,4505.5,3.2078]
[1758132321721,1.6007,4506.6,4505.6,0.444]
[1758132322022,3.2078,4506.3,4504.7,3.2078]
[1758132322321,3.2078,4505.0,4504.3,3.2078]
[1758132322514,3.2078,4505.0,4503.6,1.5507]
[1758132322515,3.2078,4505.0,4503.6,3.2078]
[1758132322714,3.2078,4505.0,4504.1,3.2078]
[1758132323111,3.2078,4504.9,4503.1,3.2078]
[1758132323312,3.2078,4504.9,4503.2,3.2078]
[1758132323513,3.2078,4504.9,4503.7,3.2078]
[1758132323713,3.2078,4504.9,4504.2,3.2078]
[1758132324116,0.444,4505.4,4504.2,3.2078]
[1758132324317,0.444,4506.0,4505.0,3.2078]
[1758132324918,3.2078,4506.3,4505.4,0.39933]
[1758132325225,3.2078,4507.0,4505.6,3.2078]
[1758132325426,3.2078,4508.0,4506.9,0.3992]
[1758132325621,3.2078,4507.5,4506.1,3.2078]
[1758132325821,1.6007,4507.4,4506.1,3.2078]
[1758132326025,1.6007,4507.4,4506.6,3.2078]
[1758132326419,3.2078,4507.5,4506.7,0.444]
[1758132326629,1.6007,4506.9,4505.3,3.2078]
[1758132327015,3.2078,4507.0,4505.5,2.54902]
[1758132327222,3.2078,4508.1,4506.7,1.5507]
[1758132327521,3.2078,4508.8,4507.2,1.5507]
[1758132327820,3.2078,4508.8,4505.6,1.24232213]
[1758132327821,3.2078,4507.6,4505.9,3.2078]
[1758132328022,3.2078,4507.0,4506.0,0.444]
[1758132328420,3.2078,4506.5,4504.9,3.2078]
[1758132328724,3.2078,4505.7,4504.6,0.444]
[1758132329226,3.2078,4506.2,4505.1,3.2078]
[1758132329522,3.2078,4506.5,4505.1,3.2078]
[1758132329825,1.6007,4506.9,4505.7,3.2078]
[1758132330221,0.443,4507.4,4505.8,1.5507]
[1758132330424,3.2078,4507.6,4506.8,0.39921]
[1758132330625,0.443,4508.3,4506.9,0.443]
[1758132330825,3.2078,4508.7,4507.2,3.2078]
[1758132331223,1.6007,4508.6,4507.2,3.2078]
[1758132331418,3.2078,4508.7,4507.3,0.443]
[1758132331823,3.2078,4508.7,4507.8,1.5507]
[1758132332023,2.0485,4509.4,4507.9,0.443]
[1758132332024,3.2078,4509.3,4507.9,0.443]
[1758132332218,0.4478,4509.4,4508.9,3.2078]
[1758132332425,3.2078,4510.3,4509.1,1.5507]
[1758132332728,3.2078,4510.3,4508.8,3.6508]
[1758132333333,1.6007,4509.6,4508.3,3.2078]
[1758132333931,3.2078,4509.7,4508.3,3.2078]
[1758132334126,0.6277,4510.5,4507.5,0.1774]
[1758132334127,1.6007,4508.9,4507.5,0.1774]
[1758132334321,1.6007,4508.5,4507.5,0.1774]
[1758132334523,0.443,4508.8,4504.3,31.962]
[1758132334524,3.2078,4507.8,4505.8,3.2078]
[1758132334731,1.6007,4507.0,4505.8,3.2078]
[1758132334927,1.6007,4506.4,4505.3,0.44391668]
[1758132335224,3.2078,4506.0,4505.3,0.44391668]
[1758132335429,0.443,4505.9,4505.3,0.44391668]
[1758132335827,1.6007,4506.0,4505.3,0.44391668]
[1758132336131,3.2078,4506.6,4505.4,3.2078]
[1758132336332,0.443,4506.5,4505.4,3.2078]
[1758132336636,0.443,4506.4,4505.4,3.2078]
[1758132336933,0.443,4506.3,4505.4,3.2078]
[1758132337130,3.8007,4506.0,4503.3,3.2078]
[1758132337324,1.5098,4504.8,4503.3,3.2078]
[1758132337524,3.2078,4504.9,4502.2,0.443]
[1758132337525,1.5098,4503.9,4502.2,3.2078]
[1758132337727,1.5098,4503.3,4502.2,3.2078]
[1758132337923,3.2078,4503.4,4502.3,1.5367]
[1758132338224,3.2078,4504.3,4502.8,1.5367]
[1758132338426,3.2078,4503.7,4502.5,3.2078]
[1758132338626,1.5098,4503.5,4502.5,3.2078]
[1758132338827,3.2078,4503.2,4502.3,1.7143]
[1758132339221,0.9791,4503.3,4502.3,0.39968999]
[1758132339427,0.443,4504.8,4503.2,3.2078]
[1758132339633,0.443,4505.0,4504.0,3.2078]
[1758132339822,3.2078,4505.7,4504.0,3.2078]
[1758132340022,0.443,4505.6,4504.0,3.2078]
[1758132340228,1.5098,4505.9,4504.6,3.2078]
[1758132340430,1.5098,4506.7,4505.2,3.2078]
[1758132340731,1.5098,4506.7,4505.7,3.2078]
[1758132340926,3.2078,4507.2,4505.7,3.2078]
[1758132341130,3.2078,4507.2,4506.5,3.2078]
[1758132341430,3.2078,4508.3,4507.1,3.2078]
[1758132341733,0.443,4508.8,4507.6,3.2078]
[1758132341927,1.5098,4508.6,4507.1,3.2078]
[1758132342433,0.443,4508.5,4507.1,3.2078]
[1758132342622,1.5098,4508.4,4507.1,3.2078]
[1758132342827,0.443,4508.3,4507.1,3.2078]
[1758132343236,0.443,4508.2,4507.1,3.2078]
[1758132343424,0.5929,4507.2,4506.6,3.2078]
[1758132343624,3.2078,4508.5,4507.1,3.2078]
[1758132343833,0.443,4508.4,4507.1,3.2078]
[1758132344136,0.443,4508.3,4507.1,3.2078]
[1758132344333,0.443,4508.2,4507.1,3.2078]
[1758132344542,1.5098,4508.7,4508.1,3.2078]
[1758132344735,1.5098,4508.7,4506.2,0.99815]
[1758132344736,0.443,4509.1,4508.6,3.2078]
[1758132345037,0.5929,4509.0,4508.0,3.2078]
[1758132345337,0.443,4508.9,4508.0,3.2078]
[1758132345539,0.443,4508.8,4508.5,3.2078]
[1758132345927,1.5098,4508.7,4507.9,3.2078]
[1758132346130,1.5098,4508.7,4507.4,3.2078]
[1758132346534,1.5098,4508.2,4506.6,3.2078]
[1758132346833,1.5098,4507.2,4505.9,3.2078]
[1758132347029,2.1027,4506.0,4504.8,0.443]
[1758132347235,3.2078,4505.9,4504.7,3.2078]
[1758132347534,1.5098,4505.6,4504.7,3.2078]
[1758132347729,3.2078,4505.1,4504.1,3.2078]
[1758132347930,0.5929,4506.0,4503.1,3.2078]
[1758132347931,3.2078,4504.6,4503.1,3.2078]
[1758132348131,0.443,4504.5,4503.1,3.2078]
[1758132348333,3.2078,4505.1,4503.2,0.443]
[1758132348637,1.5098,4503.9,4503.1,3.2078]
[1758132348840,3.2078,4504.0,4503.1,3.2078]
[1758132349134,0.443,4504.7,4503.4,0.39951]
[1758132349336,1.5098,4505.8,4503.6,3.2078]
[1758132349633,0.443,4505.7,4504.3,3.2078]
[1758132349828,0.443,4505.6,4504.4,1.5367]
[1758132350027,0.443,4505.6,4504.3,3.2078]
[1758132350028,3.2078,4505.8,4504.3,3.2078]
[1758132350429,3.2078,4505.8,4504.9,3.2078]
[1758132350634,3.2078,4505.8,4504.2,1.5367]
[1758132350839,31.96,4505.9,4504.7,3.2078]
[1758132351131,3.2078,4506.3,4505.3,1.5367]
[1758132351328,0.443,4506.2,4505.3,1.5367]
[1758132351529,0.443,4506.5,4505.3,1.5367]
[1758132351835,3.2078,4507.2,4505.7,3.2078]
[1758132352033,3.2078,4507.2,4505.8,1.5367]
[1758132352636,3.2078,4507.8,4506.3,1.5367]
[1758132352841,3.2078,4507.8,4506.8,1.5367]
[1758132353037,1.5098,4508.4,4506.8,1.5367]
[1758132353242,0.443,4508.9,4507.8,3.2078]
[1758132353443,0.443,4509.3,4507.9,1.9797]
[1758132353743,0.893,4509.4,4507.9,4.7445]
[1758132353938,0.443,4509.3,4507.9,4.7445]
[1758132354138,0.45,4509.4,4508.5,3.2078]
[1758132354338,0.893,4509.4,4508.5,1.5367]
[1758132354741,0.893,4509.4,4508.2,0.443]
[1758132355041,0.893,4509.4,4508.5,3.2078]
[1758132355242,1.5098,4509.0,4507.9,3.2078]
[1758132355443,3.2078,4509.1,4506.8,1.5367]
[1758132355444,1.5098,4508.8,4507.4,3.2078]
[1758132355640,1.5098,4508.8,4506.9,3.6508]
[1758132355838,3.2078,4508.5,4506.9,3.6508]
[1758132356038,3.2078,4508.5,4507.0,0.443]
[1758132356240,3.2078,4508.5,4506.9,3.2078]
[1758132356444,3.2078,4507.9,4505.9,3.2078]
[1758132356644,1.5098,4508.0,4505.3,32.36434]
[1758132356645,0.443,4507.8,4506.0,3.6508]
[1758132357144,3.2078,4507.6,4506.0,3.6508]
[1758132357344,0.443,4507.5,4506.1,1.5367]
[1758132357541,1.5098,4506.7,4505.5,3.2078]
[1758132357838,1.5098,4506.5,4506.2,0.1775]
[1758132358038,3.2078,4507.0,4506.2,0.1775]
[1758132358248,0.443,4506.9,4506.2,3.3853]
[1758132358647,0.443,4507.6,4506.3,1.5367]
[1758132358848,0.443,4507.6,4506.3,1.9797]
[1758132359355,3.2078,4507.5,4506.3,1.5367]
[1758132359655,3.2078,4507.5,4506.2,3.3853]
[1758132359954,4.7176,4507.5,4506.2,3.3853]
[1758132360150,1.5098,4507.5,4506.2,0.1775]
[1758132360353,0.443,4507.4,4506.2,3.3853]
[1758132360552,1.5497,4506.6,4504.8,3.2078]
[1758132360745,1.5497,4506.1,4504.3,3.2078]
[1758132361051,3.6508,4506.0,4504.3,3.2078]
[1758132361252,1.5497,4505.2,4503.8,3.2078]
[1758132361556,0.443,4505.1,4503.8,3.2078]
[1758132361746,1.5497,4505.2,4503.8,3.2078]
[1758132361953,3.2078,4505.3,4503.9,1.4592]
[1758132362256,0.443,4505.6,4504.0,3.2078]
[1758132362451,3.2078,4505.2,4504.0,3.2078]
[1758132362644,0.443,4505.1,4504.0,3.2078]
[1758132362847,3.2078,4505.2,4504.0,3.2078]
[1758132363047,3.2078,4505.2,4504.1,1.4592]
[1758132363250,3.2078,4507.4,4505.3,1.4592]
[1758132363448,3.2078,4508.1,4507.0,3.2078]
[1758132363651,0.443,4508.4,4507.1,1.4592]
[1758132363851,0.443,4508.9,4508.0,3.2078]
[1758132364052,31.961,4510.2,4508.0,3.2078]
[1758132364352,3.2078,4510.6,4509.1,3.2078]
[1758132364562,0.443,4510.5,4509.1,3.2078]
[1758132364751,1.5497,4510.4,4509.1,2.76682]
[1758132365261,0.443,4510.3,4508.6,1.3682]
[1758132365550,0.443,4510.3,4508.2,3.2078]
[1758132365551,1.5497,4510.2,4508.2,3.2078]
[1758132365855,3.2078,4509.6,4508.2,3.2078]
[1758132366058,1.9927,4509.5,4508.2,3.2078]
[1758132366352,1.5497,4509.3,4507.7,3.2078]
[1758132366553,1.5497,4508.4,4507.1,3.2078]
[1758132366751,1.5497,4508.2,4506.0,3.2078]
[1758132366946,1.5472,4508.2,4506.5,3.2078]
[1758132367150,1.5472,4507.1,4506.0,3.2078]
[1758132367357,1.9902,4507.1,4506.0,3.2078]
[1758132368160,3.2078,4506.1,4505.4,0.1775]
[1758132368356,0.443,4506.0,4505.4,0.1775]
[1758132368559,3.2078,4506.1,4505.4,0.1775]
[1758132368853,3.2078,4507.1,4505.5,3.2078]
[1758132369052,3.2078,4507.1,4506.0,3.2078]
[1758132369248,3.2078,4506.9,4505.4,3.3853]
[1758132369559,3.2078,4507.5,4505.9,3.2078]
[1758132369759,3.2078,4506.8,4505.9,3.2078]
[1758132369957,3.2078,4506.2,4505.4,0.1775]
[1758132370257,3.2078,4506.2,4504.4,0.39942]
[1758132370258,1.5472,4506.1,4504.3,0.443]
[1758132370450,1.5472,4506.1,4504.2,3.2078]
[1758132370649,3.2078,4505.5,4504.2,3.2078]
[1758132370956,1.5472,4506.1,4504.8,3.2078]
[1758132371167,0.443,4506.5,4505.4,3.2078]
[1758132371457,3.2078,4506.9,4505.4,3.2078]
[1758132371654,3.2078,4506.0,4504.9,3.2078]
[1758132371854,3.2078,4505.6,4504.3,0.0222]
[1758132372058,0.6401,4504.5,4502.2,3.2078]
[1758132372257,0.6401,4504.5,4501.0,3.2078]
[1758132372258,4.755,4502.3,4501.0,3.2078]
[1758132372454,3.2078,4501.1,4498.2,1.5061]
[1758132372657,0.6401,4503.0,4498.3,0.443]
[1758132372658,3.2078,4500.4,4498.3,0.443]
[1758132372853,0.443,4500.3,4498.2,1.5061]
[1758132373058,3.2078,4500.4,4499.5,1.5061]
[1758132373354,0.443,4501.3,4499.4,3.2078]
[1758132373355,3.2078,4501.0,4500.1,1.5061]
[1758132373561,3.6508,4501.5,4500.1,4.7139]
[1758132373760,3.2078,4502.5,4500.7,1.5061]
[1758132373957,3.2078,4501.9,4500.7,1.9491]
[1758132374262,3.2078,4501.9,4500.8,1.5061]
[1758132374463,3.2078,4501.9,4500.8,1.6838]
[1758132375161,3.2078,4501.9,4500.9,0.443]
[1758132375357,3.2078,4501.9,4501.0,1.5061]
[1758132375558,3.2078,4502.4,4501.2,1.5061]
[1758132375863,0.4848,4508.8,4501.0,0.0222]
[1758132375864,3.2078,4503.4,4502.3,1.5061]
[1758132376060,3.2078,4503.4,4502.4,1.0243]
[1758132376256,3.2078,4503.4,4502.4,0.5803]
[1758132376464,0.444,4503.3,4502.2,3.2078]
[1758132376864,3.2078,4503.4,4502.2,3.2078]
[1758132377259,3.6518,4503.4,4502.0,0.444]
[1758132377468,3.2078,4503.4,4502.0,1.9501]
[1758132377767,3.2078,4502.9,4502.0,1.5061]
[1758132378060,3.2078,4502.4,4501.0,0.0222]
[1758132378260,0.444,4502.3,4501.0,0.0222]
[1758132378762,3.2078,4501.7,4501.0,0.0222]
[1758132378962,3.2078,4502.3,4501.1,1.5061]
[1758132379170,3.2078,4502.3,4501.0,0.0222]
[1758132379465,0.444,4502.2,4501.0,1.5283]
[1758132379966,3.2078,4501.1,4500.0,3.2078]
[1758132380360,3.2078,4501.6,4500.1,1.5061]
[1758132380860,3.2078,4501.4,4500.1,1.5061]
[1758132381262,3.2078,4501.4,4500.3,1.5061]
[1758132381572,3.2078,4501.4,4500.0,0.5803]
[1758132381866,3.2078,4501.4,4500.1,1.5061]
[1758132382067,0.444,4501.3,4500.1,1.5061]
[1758132382364,3.2078,4500.5,4499.0,3.2078]
[1758132382569,0.444,4500.4,4499.1,1.5061]
[1758132382867,3.2078,4500.4,4499.2,0.1778]
[1758132383065,0.4699,4503.0,4499.6,3.2078]
[1758132383066,3.2078,4501.0,4499.6,3.2078]
[1758132383466,3.2078,4500.4,4499.5,0.444]
[1758132383762,0.4699,4503.0,4499.2,0.1778]
[1758132383763,3.2078,4499.6,4499.2,0.1778]
[1758132383967,3.2078,4499.6,4496.3,1.00035]
[1758132383968,3.2078,4498.6,4495.3,1.95100418]
[1758132384162,3.2078,4496.8,4495.3,0.44490418]
[1758132384358,3.2078,4496.3,4495.3,0.44490418]
[1758132384558,3.2078,4496.3,4492.6,0.5803]
[1758132384559,3.2078,4495.6,4492.9,4.7139]
[1758132384755,3.2078,4494.1,4492.8,3.2078]
[1758132384957,3.2078,4493.4,4492.9,1.5061]
[1758132385258,3.6518,4493.4,4492.6,0.5803]
[1758132385462,3.6518,4493.4,4486.5,2.00511]
[1758132385463,3.2078,4492.7,4490.8,1.5061]
[1758132385763,3.2078,4491.9,4490.8,1.5061]
[1758132385964,3.2078,4492.2,4491.3,1.5061]
[1758132386159,3.2078,4492.2,4489.7,1.00184]
[1758132386160,3.2078,4493.7,4492.1,3.2078]
[1758132386359,3.2078,4493.7,4492.9,3.2078]
[1758132386561,3.2078,4494.5,4494.4,0.5803]
[1758132386866,0.444,4495.2,4494.4,2.0864]
[1758132387067,3.2078,4495.6,4494.3,3.2078]
[1758132387263,3.2078,4495.6,4494.0,1.9501]
[1758132387264,3.6518,4495.6,4494.0,1.9501]
[1758132387460,3.2078,4495.6,4494.4,2.0864]
[1758132387770,3.2078,4495.6,4494.8,3.2078]
[1758132387960,3.2078,4496.1,4494.9,3.2078]
[1758132388159,3.2078,4496.1,4495.4,3.2078]
[1758132388363,3.6518,4496.1,4494.9,3.2078]
[1758132388569,3.2078,4495.6,4493.8,3.2078]
[1758132388772,3.2078,4495.6,4494.5,1.5061]
[1758132388964,3.2078,4495.6,4494.3,3.2078]
[1758132389167,3.2078,4496.2,4494.9,1.5061]
[1758132389368,3.2078,4496.2,4495.6,1.5061]
[1758132389568,3.2078,4496.7,4495.6,1.5061]
[1758132389766,3.2078,4497.0,4495.6,1.5061]
[1758132390373,3.2078,4497.0,4496.1,3.2078]
[1758132390574,3.2078,4497.0,4495.7,1.9501]
[1758132390765,3.2078,4495.8,4495.7,1.5061]
[1758132390964,3.2078,4495.8,4491.2,4.2783]
[1758132390965,1.5472,4495.7,4492.9,32.013]
[1758132391170,1.5472,4494.9,4492.8,3.2078]
[1758132391367,3.2078,4494.0,4492.8,3.2078]
[1758132391567,3.2078,4494.0,4492.9,1.5061]
[1758132391767,0.444,4495.0,4493.1,3.2078]
[1758132391974,3.2078,4495.3,4494.3,1.5061]
[1758132392275,3.2078,4495.8,4494.4,0.444]
[1758132392769,1.5472,4495.1,4492.9,3.2078]
[1758132392974,3.2078,4494.5,4493.2,3.2078]
[1758132393169,3.2078,4494.5,4493.3,1.5061]
[1758132393474,3.2078,4494.5,4493.4,0.444]
[1758132393770,3.2078,4494.5,4493.3,1.5061]
[1758132394173,3.2078,4494.0,4493.4,0.444]
[1758132394370,3.2078,4494.0,4493.3,1.5061]
[1758132394767,3.2078,4494.5,4493.3,4.0]
[1758132394967,3.2078,4494.5,4493.7,1.5061]
[1758132395168,5.199,4496.1,4494.2,3.2078]
[1758132395365,4.755,4496.1,4494.6,4.7139]
[1758132395566,3.2078,4496.1,4495.1,3.2078]
[1758132396072,0.444,4496.7,4495.1,3.2078]
[1758132396476,1.5472,4496.1,4494.9,0.444]
[1758132396670,3.2078,4496.2,4495.2,1.5061]
[1758132397071,3.2078,4496.8,4495.7,3.2078]
[1758132397274,3.2078,4496.8,4495.8,0.444]
[1758132397671,3.2078,4497.3,4496.7,3.2078]
[1758132398067,3.2078,4497.3,4496.5,3.2078]
[1758132398269,3.2078,4497.3,4496.4,1.5493]
[1758132398468,3.2078,4497.3,4495.7,3.2078]
[1758132398469,1.5906,4497.2,4495.7,3.2078]
[1758132398771,1.5906,4497.2,4495.7,3.6518]
[1758132398971,1.5906,4497.2,4495.7,3.2078]
[1758132399474,1.5906,4497.2,4495.7,4.7571]
[1758132399776,3.2078,4496.8,4495.0,3.2078]
[1758132399971,3.2078,4496.8,4495.8,1.5493]
[1758132400168,3.2078,4497.3,4496.3,3.2078]
[1758132400375,0.444,4497.2,4496.3,3.2078]
[1758132400568,3.2078,4497.3,4496.3,3.2078]
[1758132400770,3.2078,4497.3,4495.8,4.7571]
[1758132400970,3.2078,4496.8,4495.8,4.7571]
[1758132401174,0.444,4496.7,4495.8,4.7571]
[1758132401371,0.444,4496.6,4495.8,4.7571]
[1758132402079,0.444,4496.5,4495.8,4.7571]
[1758132402375,3.2078,4497.4,4496.4,3.2078]
[1758132402576,3.2078,4497.4,4496.4,3.6518]
[1758132402876,0.444,4497.5,4496.4,3.6518]
[1758132403178,0.444,4497.5,4496.9,3.2078]
[1758132403373,0.444,4497.5,4496.5,0.0966]
[1758132403775,3.2078,4497.0,4496.5,0.0966]
[1758132403973,4.444,4496.9,4493.4,3.2078]
[1758132404178,3.2078,4495.0,4493.3,3.2078]
[1758132404478,0.444,4496.2,4494.6,3.2078]
[1758132404775,3.2078,4496.8,4495.9,3.2078]
[1758132404979,0.444,4496.9,4496.5,3.2078]
[1758132405377,0.444,4496.9,4495.8,3.2078]
[1758132406076,3.2078,4498.2,4496.4,3.2078]
[1758132406281,3.2078,4498.2,4496.8,3.2078]
[1758132406482,0.444,4498.1,4497.4,3.2078]
[1758132406780,0.444,4498.1,4496.9,3.2078]
[1758132407175,3.2078,4497.3,4495.1,3.2078]
[1758132407371,3.2078,4496.8,4495.1,3.2078]
[1758132407571,0.444,4496.7,4495.1,3.2078]
[1758132408179,3.2078,4496.2,4494.6,3.2078]
[1758132408373,3.2078,4495.7,4494.1,3.2078]
[1758132408577,32.03,4497.5,4493.3,3.2078]
[1758132408578,3.2078,4495.1,4493.3,3.2078]
[1758132408779,0.444,4495.0,4493.3,3.2078]
[1758132409085,3.2078,4495.1,4493.9,3.2078]
[1758132409278,3.2078,4495.1,4493.3,3.2078]
[1758132409481,3.2078,4495.1,4493.4,0.444]
[1758132409674,3.2078,4494.6,4493.3,3.2078]
[1758132409879,0.444,4494.5,4492.6,3.2078]
[1758132410077,3.2078,4492.9,4491.3,3.2078]
[1758132410281,3.2078,4492.2,4490.2,3.2078]
[1758132410579,3.2078,4491.6,4489.8,3.6518]
[1758132410784,3.6518,4492.1,4491.0,3.2078]
[1758132410971,3.2078,4492.1,4490.4,3.2078]
[1758132411177,3.2078,4492.6,4491.6,3.2078]
[1758132411478,3.2078,4492.4,4491.6,3.2078]
[1758132411678,3.2078,4491.9,4490.3,3.2078]
[1758132411877,3.6518,4492.4,4490.9,3.2078]
[1758132412078,3.2078,4492.4,4491.4,3.2078]
[1758132412278,3.2078,4492.4,4491.0,0.444]
[1758132412473,3.2078,4492.4,4491.4,3.2078]
[1758132412679,3.2078,4492.4,4491.0,0.444]
[1758132412680,3.2078,4491.9,4490.7,3.2078]
[1758132412880,3.2078,4491.9,4489.7,3.2078]
[1758132413078,3.2078,4490.9,4489.2,3.2078]
[1758132413381,0.444,4490.8,4489.3,0.445]
[1758132413581,3.2078,4490.9,4489.3,0.445]
[1758132413877,3.2078,4490.9,4489.2,3.2078]
[1758132414077,3.2078,4490.9,4489.7,3.2078]
[1758132414280,3.2078,4492.0,4490.2,3.2078]
[1758132414486,0.445,4492.6,4491.3,3.2078]
[1758132415074,3.2078,4492.1,4490.8,3.2078]
[1758132415280,3.2078,4491.6,4490.8,3.2078]
[1758132415484,3.2078,4492.1,4490.9,0.445]
[1758132416087,3.2078,4492.3,4491.3,3.2078]
[1758132416479,3.6528,4492.3,4491.3,3.2078]
[1758132416679,3.2078,4492.3,4491.0,0.445]
[1758132416883,3.2078,4492.3,4491.4,3.2078]
[1758132417586,3.2078,4492.1,4490.8,0.445]
[1758132417888,3.2078,4492.1,4491.0,3.2078]
[1758132418088,3.2078,4492.7,4491.5,3.2078]
[1758132418279,3.2078,4493.2,4491.6,0.445]
[1758132418485,3.6528,4493.2,4491.0,3.2078]
[1758132418787,3.2078,4492.6,4491.1,0.445]
[1758132418988,0.445,4493.0,4491.5,3.2078]
[1758132419183,3.2078,4493.1,4492.0,3.2078]
[1758132419487,3.2078,4493.1,4492.1,0.445]
[1758132419987,3.2078,4493.6,4492.5,3.2078]
[1758132420288,3.2078,4493.5,4491.6,3.2078]
[1758132420590,3.2078,4493.4,4492.1,3.2078]
[1758132420784,35.2498,4494.3,4492.8,3.2078]
[1758132420978,3.2078,4493.7,4492.3,3.2078]
[1758132421181,3.2078,4493.7,4490.7,0.02225882]
[1758132421182,3.2078,4493.1,4491.8,3.2078]
[1758132421383,3.2078,4491.9,4490.6,3.2078]
[1758132421582,3.6528,4491.9,4490.6,3.2078]
[1758132422288,3.2078,4491.9,4490.9,3.2078]
[1758132422492,3.2078,4491.4,4490.3,3.2078]
[1758132422886,3.2078,4491.0,4490.3,3.2078]
[1758132423589,3.2078,4490.4,4489.5,0.445]
[1758132423789,3.6528,4490.4,4489.2,3.6528]
[1758132423991,3.6528,4490.4,4489.2,0.445]
[1758132424378,3.2078,4490.9,4489.4,3.2078]
[1758132424580,0.445,4490.8,4489.4,3.2078]
[1758132424780,0.445,4490.7,4489.4,3.2078]
[1758132425290,3.2078,4490.2,4489.1,0.02227643]